Cogmind - Beta 15 @@@ ROGUE MODE // 2025.10.05 @ 21:33:06 Player: SnailSD Result: Destroyed by G-34 Mercenary with Small Laser Performance ------------- Evolutions (0) 0 Regions Visited (1) 200 Robots Destroyed (15) 75 Value Destroyed (215) 215 Prototype IDs (0) 0 Alien Tech Used (0) 0 Bonus (0) 0 TOTAL SCORE: 490 Bonus ------- None Cogmind --------- Core Integrity 0/250 Matter 273/300 Energy 249/250 System Corruption 0% Temperature Cool (6) Movement Rolling (175) Ox5 Location -10/Materials Parts ------- > --- POWER (1) -------- Ion Engine > --- PROPULSION (2) --- Compact Wheel > --- UTILITY (2) ------ Huge Storage Unit > --- WEAPON (2) ------- Light Assault Rifle Light Assault Rifle > --- INVENTORY (25) --- Ion Engine Light Treads Light Treads Aluminum Leg Aluminum Leg Small Storage Unit Datajack Peak State ------------ > --- POWER ------------ Ion Engine > --- PROPULSION ------- Wheel Compact Wheel > --- UTILITY ---------- Small Storage Unit Huge Storage Unit > --- WEAPON ----------- EM Pulse Gun EM Pulse Gun > --- INVENTORY -------- Ion Engine Light Treads Light Treads Aluminum Leg Aluminum Leg Light Assault Rifle [Rating: 7] Favorites ----------- Power Ion Engine Engine Ion Engine Propulsion Compact Wheel Treads Light Treads Wheel Compact Wheel Utility Huge Storage Unit Storage Huge Storage Unit Weapon EM Pulse Gun Energy Gun EM Pulse Gun Ballistic Gun Light Assault Rifle Build | -11 -10 ------- Run | Yrd Mat Slots Evolved . | . . Power . | . . Propulsion . | . . Utility . | . . Weapon . | . . Parts Attached 14 | 6 8 Power 2 | 1 1 Engine 2 | 1 1 Core . | . . Reactor . | . . Propulsion 5 | 2 3 Treads 2 | . 2 Leg . | . . Wheel 3 | 2 1 Hover . | . . Flight . | . . Utility 2 | 1 1 Device . | . . Storage 2 | 1 1 Processor . | . . Hackware . | . . Protection . | . . Artifact . | . . Weapon 5 | 2 3 Energy Gun 2 | 2 . Energy Cannon . | . . Ballistic Gun 3 | . 3 Ballistic Cannon . | . . Launcher . | . . Special Weapon . | . . Impact Weapon . | . . Slashing Weapon . | . . Piercing Weapon . | . . Special Melee Weapon . | . . Unidentified Prototypes . | . . Parts Lost 6 | . 6 Power 1 | . 1 Propulsion 2 | . 2 Utility . | . . Weapon 3 | . 3 Highest Loss Streak 4 | . 4 To Critical Strikes . | . . Average Backups 7 | 2 7 Power 1 | . 1 Propulsion 3 | 1 3 Utility . | . . Weapon . | . . Tool/Special . | . . Unused Backups 4 | . 4 Power 1 | . 1 Propulsion 2 | . 2 Utility . | . . Weapon . | . . Tool/Special 1 | . 1 Average Slot Usage (%) 83 | . 83 Engine 13 | . 13 Treads 2 | . 2 Wheel 25 | . 25 Storage 14 | . 14 Energy Gun 14 | . 14 Ballistic Gun 13 | . 13 Peak Build Rating 7 | 6 7 Average Rating 5 | 5 5 On Entrance 3 | . 6 Naked Turns . | . . Heaviest Build 89 | 14 89 Greatest Support 40 | 26 40 Greatest Overweight (x) 5 | 3 5 Average Overweight (x) 2 | . 2 Largest Inventory Capacity 25 | 8 25 Average Capacity 22 | 7 24 Most Carried 9 | 6 9 Average Carried 7 | 3 8 Final Capacity 25 | 8 25 Final Carried 7 | 6 7 Class Distribution -------------------- 100% | Mutant Dominant Class ---------------- Mutant | -10/Materials Resources | -11 -10 ----------- Run | Yrd Mat Matter Collected 388 | 204 184 Remotely . | . . Salvage Created 414 | . 414 Parts 36 | . 36 Haulers Intercepted . | . . Recyclers Shooed . | . . Parts Field Recycled . | . . Retrieved Matter . | . . Parts Self-Destructed . | . . Prevented . | . . Kills | -11 -10 ------- Run | Yrd Mat Combat Hostiles Destroyed 12 | . 12 Guns 12 | . 12 Classes Destroyed 5 | . 5 Worker 1 | . 1 Recycler 1 | . 1 Operator 1 | . 1 Swarmer 9 | . 9 Grunt 3 | . 3 Best Kill Streak 3 | . 3 Combat Bots Only 3 | . 3 Max Kills in Single Turn 1 | . 1 Gunslinging . | . . Exploded . | . . Melee . | . . Uniques/NPCs Destroyed . | . . Combat | -11 -10 -------- Run | Yrd Mat Hostile Shots Fired 105 | . 105 Missed 26 | . 26 Hits 79 | . 79 Projectile 79 | . 79 Critical Strikes 1 | . 1 Damage Taken 679 | . 679 Core 250 | . 250 Absorbed by Shields . | . . Core Remaining (%) 100 | 100 . Volleys Fired 72 | . 72 Largest 2 | . 2 Hottest 80 | . 80 Shots Fired 120 | . 120 Gun 120 | . 120 Cannon . | . . Launcher . | . . Special . | . . Kinetic 86 | . 86 Thermal . | . . Explosive . | . . Electromagnetic 34 | . 34 Robot Hit Streak 13 | . 13 Robot Miss Streak 6 | . 6 Penetration Max . | . . Secondary Targets 1 | . 1 Max Gunslinging Chain 1 | . 1 Shots Hit Robots 64 | . 64 Core Hits 25 | . 25 Critical Kills . | . . Critical Parts Destroyed . | . . Critical Strikes . | . . Melee Attacks . | . . Impact . | . . Slashing . | . . Piercing . | . . Sneak Attacks . | . . Combat Hostiles . | . . Follow-up Attacks . | . . Damage Inflicted 626 | . 626 Guns 621 | . 621 Cannons . | . . Explosions . | . . Melee . | . . Ramming 5 | . 5 Kinetic 315 | . 315 Thermal . | . . Explosive . | . . Electromagnetic 306 | . 306 Impact . | . . Slashing . | . . Piercing . | . . Highest Corruption . | . . Average Corruption . | . . Corruption Purged . | . . Corruption Blocked . | . . Overload Shots . | . . Overflow Damage . | . . Projectiles . | . . Explosions . | . . Melee . | . . Knockbacks . | . . Impact . | . . Kinetic . | . . Secondary . | . . Self-Inflicted Damage 2 | . 2 Shots . | . . Rammed 1 | . 1 Targets Rammed 1 | . 1 Kicked . | . . Crushed . | . . Highest Temperature 72 | . 72 Average Temperature 21 | . 21 Received Heat Transfer 60 | . 60 Siege Activations . | . . Martial Activations . | . . Shielding Activations . | . . Robots Disrupted . | . . Combat Hostiles . | . . Robots Corrupted . | . . Combat Hostiles . | . . Parts Fried . | . . Impact Corruptions . | . . Robots Melted . | . . Combat Hostiles . | . . Parts Melted . | . . Heat Transferred . | . . Parts Sabotaged . | . . Parts Stolen . | . . Parts Stripped . | . . Power Chain Reactions . | . . Alert | -11 -10 ------- Run | Yrd Mat Maximum Alert Level . | . . Low Security (%) 100 | 100 100 Level 1 . | . . Level 2 . | . . Level 3 . | . . Level 4 . | . . Level 5 . | . . High Security . | . . Max Security . | . . Peak Influence 70 | . 70 Initial . | . . Average 20 | . 21 Influence Increases 311 | . 311 Destroy 0b10 Robot/C 240 | . 240 Destroy 0b10 Robot/NC 15 | . 15 Destroy Leader 50 | . 50 Successful Hack 6 | . 6 Influence Decreases 277 | . 277 Time Decay 237 | . 237 Lost Part 40 | . 40 Squads Dispatched 3 | . 3 Investigation 1 | . 1 Extermination . | . . Reinforcement 2 | . 2 Assault . | . . Garrison . | . . Intercept . | . . Searches Triggered . | . . Construction Impeded . | . . Haulers Reinforced . | . . Active Scanning Responses . | . . Cargo Convoy Interrupts . | . . Stealth | -11 -10 --------- Run | Yrd Mat Distress Signals 2 | . 2 Communications Jammed . | . . Distress Signals . | . . Times Spotted 19 | . 19 Peak Tracking Total 5 | . 5 Tactical Retreats . | . . Traps | -11 -10 ------- Run | Yrd Mat Traps Triggered 1 | . 1 Indirectly . | . . Trap Hack Attempts . | . . Triggered . | . . Disarmed . | . . Reprogrammed . | . . Reused . | . . Traps Extracted . | . . Installed . | . . Triggered . | . . Machines | -11 -10 ---------- Run | Yrd Mat Machines Disabled . | . . Max in Single Turn . | . . Machines Repaired . | . . Machines Dismantled . | . . Machines Sabotaged . | . . Overloaded Fab Kills . | . . Hacking | -11 -10 --------- Run | Yrd Mat Machines Accessed 1 | . 1 Terminals 1 | . 1 Fabricators . | . . Repair Stations . | . . Recycling Units . | . . Scanalyzers . | . . Garrison Access . | . . Total Hacks 4 | . 4 Successful 2 | . 2 Failed 1 | . 1 Catastrophic . | . . Database Lockouts 1 | . 1 Manual 4 | . 4 Terminals 4 | . 4 Fabricators . | . . Repair Stations . | . . Recycling Units . | . . Scanalyzers . | . . Garrison Access . | . . Terminal Hacks 1 | . 1 Robot Analysis 1 | . 1 Fabricator Hacks . | . . Repair Station Hacks . | . . Recycling Unit Hacks . | . . Scanalyzer . | . . Garrison Access Hacks . | . . Unauthorized Hacks 1 | . 1 Terminals 1 | . 1 Operators 1 | . 1 Fabricators . | . . Repair Stations . | . . Recycling Units . | . . Scanalyzers . | . . Garrison Access . | . . Data Cores Recovered . | . . Used . | . . Hacking Detections 1 | . 1 Full Trace Events 1 | . 1 Feedback Events . | . . Feedback Blocked . | . . Robot Schematics Acquired . | . . Robots Built . | . . Authchips . | . . Time . | . . Total Robot Build Rating . | . . Part Schematics Acquired . | . . Parts Built . | . . Authchips . | . . Time . | . . Total Part Build Rating . | . . Parts Repaired . | . . Time . | . . Parts Recycled . | . . Recycled Matter . | . . Retrieved Matter . | . . Retrieved Components . | . . Parts Scanalyzed . | . . Part Schematics Acquired . | . . Parts Damaged . | . . Bothacking | -11 -10 ------------ Run | Yrd Mat Used RIF Installer . | . . Robots Hacked . | . . Non-combat . | . . Combat . | . . Robot Hacks Applied . | . . Relay Couplers Released . | . . Fabnet Peak Effective % . | . . Robots Rewired . | . . Allies Hacked . | . . Hacks Repelled . | . . Allies | -11 -10 -------- Run | Yrd Mat Total Allies . | . . Largest Group . | . . Highest-Rated Group . | . . Highest-Rated Ally . | . . Total Orders . | . . Ally Attacks . | . . Total Damage . | . . Kills . | . . Allies Corrupted . | . . Allies Melted . | . . Intel | -11 -10 ------- Run | Yrd Mat Active Infowar (turns) . | . . Robot Analysis Total 1 | . 1 Derelict Logs Recovered . | . . Drone Launches . | . . Drone Recoveries . | . . Exploration | -11 -10 ------------- Run | Yrd Mat Turns Passed 724 | 57 667 Spaces Moved 396 | 46 350 Core 3 | 3 . Treads 8 | . 8 Legs . | . . Wheels 385 | 43 342 Hover . | . . Flight . | . . Fastest Speed 50 | 50 90 Average Speed 129 | 92 134 Slowest Speed 320 | 200 320 Overloaded Moves . | . . Propulsion Burnouts . | . . Robots Hopped . | . . Potential Cave-ins . | . . Cave-ins Triggered . | . . Exploration Rate (%) 31 | 3 59 Regions Visited 1 Branch Regions . Pre-discovered Areas . | . . Known Exits Taken . | . . Unknown Exits Taken 1 | 1 . Scrap Searched . | . . Spaces Dug . | . . Terrain Destroyed . | . . Melee . | . . Projectile . | . . AOE . | . . Terrain Rammed . | . . Walls Destroyed . | . . Machines Disabled . | . . Actions | -11 -10 --------- Run | Yrd Mat Total 500 | 57 443 Wait 4 | . 4 Move 395 | 45 350 Hop . | . . Pick Up 10 | 6 4 Fast Attach 9 | 6 3 Attach 5 | . 5 Detach 2 | . 2 Swap 1 | . 1 Drop 1 | . 1 Fire 72 | . 72 Melee . | . . Ram 1 | . 1 Kick . | . . Crush . | . . Escape Stasis . | . . Rewire . | . . Trap . | . . Miscellaneous . | . . Route ------- -11/Scrapyard -10/Materials (discovered 2 exits: [*Mat] / [*Min]) History --------- Turn | Location | Event 33 | -11/Scrapyard | Discovered new exit (range 14) 58 | -11/Scrapyard | Entered Materials 172 | -10/Materials | Central database locked down 182 | -10/Materials | Discovered new exit (range 16) 308 | -10/Materials | Build established: Mutant 422 | -10/Materials | Core integrity fell below 50% 453 | -10/Materials | Lost 4 parts (1p1n2w) 518 | -10/Materials | Discovered new exit (range 16) 687 | -10/Materials | Core integrity fell below 20% 725 | -10/Materials | Destroyed by G-34 Mercenary with Small Laser Last Messages --------------- signal. 00547_ K-01 Serf collects debris. 00558_ G-34 Mercenary destroyed. 00561_ K-01 Serf collects debris. 00585_ Acquired 18 matter. 00590_ K-01 Serf collects debris. 00608_ K-01 Serf destroyed. 00610_ K-01 Serf collects debris. 00616_ Acquired 4 matter. 00619_ K-01 Serf collects debris. 00632_ O-16 Technician destroyed. 00636_ Acquired 2 matter. 00645_ K-01 Serf cleans the Material Compactor. 00653_ K-01 Serf collects debris. 00684_ S-10 Pest destroyed. 00685_ ALERT: Hostiles spotted, dispatching reinforcements to Terminal M006. 00690_ Wheel destroyed. 00692_ Lgt. Assault Rifle destroyed. 00692_ S-10 Pest destroyed. Map ----- +----------------------------------------------------+ | ?????????????????????????????# """ #???? | | ?????????????????????????????# """ #???? | | ?????????????????????????????# #???? | | ?????????????????????????????########???? | | ????????????????????????????????????????? | | ????????????????????????????????????????? | | ????????????????????????????????????????? | | ????????????????????????????????????????? | | ????????????????o???????????????????????? | | ????????????????????????????????????????? | | ??????????????? ""?????????????????????? | | ??????????????? "???????????????????? | | ??????????????? ???????????????????? | | ??????????????+ [ ???????????????????? | | ??????????????# % ???????????????????? | | ??????????????# #???????????????????? | | ??????????????# #???????????????????? | | ????##+######## #???????????????????? | | ????# = #???????????????????? | | ????# [%* #???????????????????? | | ????# = #???????????????????? | | ????# g #???????????????????? | | ????#g #????????########+### | | ????# !!! = #????????# + | | ????# [* !!! [%= #????????# ## | | ????# * !! @ #????????#*% ## "" | | ????????######## ####????????# = ## """ | | ?????????####??# #???????????# ## """ | | ????????# ?# #???????????# ## """ | | ????????# """?# #???###########+### "" | | ????????# """ # #???# | | ????????# """ # ##### = | | ????????# + ! *% | | ????????# #^######+###############/# | | ????????######## #???? ???????# | | ??????????????? #???? ???????# """ | | ?????????????? #??? """??????# """ | | ????????????? #??? """"??????# """ | | ????????????? ?? """""?????# | | ????????????######?? """""?????# | | ???????????????????# ""???????# "T" | | ???????????????????# ??????????# """ | | ???????????????????# ??????????# | | ???????????????????##???????????######### | | ????????????????????????????????????????? | | ????????????????????????????????????????? | | | | | | | | | +----------------------------------------------------+ Best States ------------- Heat Dissipation 25 Energy Generation 10 Energy Capacity 250 Matter Stores 300 Matter Capacity 300 Sight Range 16 Terrain Scan Density 10 Evasion (%) 42 Recoil Reduction 2 Item Schematics ----------------- None Robot Schematics ------------------ None Fabricated ------------ Nothing Repaired ---------- Nothing Alien Tech Used ----------------- None Achievements -------------- None Challenges ------------ None Game ------ Seed SpacefoldAssemblyCapacitor Manual? 0 Play Time 00:08:56 Cumulative 30.2 hours Start 2025.10.05 @ 21:28:07 End 2025.10.05 @ 21:33:06 Sessions 1 Manual Loads 0 Difficulty Rogue Special Mode None Game No. 54 Rogue 54 Adventurer 0 Explorer 0 Win Type - Total 0 Types 0/0/0/0/0/0/0/0/0/0 Lore% 32 Gallery% 31 Achievement% 28 Wizard Run 0 Options --------- Layout 1 ASCII 0 Keyboard 0 Movement Numpad Keybinds 0 Fullscreen 1 Font 24/Smallcaps Map View 50x35 Zoom Use 0% Tactical HUD 1 Map Filters NONE Filters NONE Steam 1 RUN: 25997541-2a05-49f4-aad3-964b03a9cfe5